bitfinex-derivatives/quotes_ETHF0:USTF0_20250106
["timestamp","ask_amount","ask_price","bid_price","bid_amount"]
[1736140070472,0.24486,3676.8,3676.5,2.41297662]
[1736140070776,0.4482,3677.0,3676.5,2.41297662]
[1736140070971,0.24486,3676.7,3676.5,2.41297662]
[1736140071368,0.4377,3676.6,3676.5,2.41297662]
[1736140071675,0.4377,3676.6,3676.5,2.16810662]
[1736140072163,0.4377,3676.6,3676.5,2.41297662]
[1736140073775,0.4377,3676.6,3676.5,2.16810662]
[1736140073976,0.4377,3676.6,3676.5,2.41297662]
[1736140076572,0.24485,3676.8,3676.5,2.41297662]
[1736140076773,0.24486,3676.8,3676.5,2.41297662]
[1736140077173,0.4482,3677.0,3676.6,0.24487]
[1736140077376,0.69305,3677.0,3676.7,0.24486]
[1736140077778,0.4482,3677.0,3676.9,0.24485]
[1736140079177,0.4482,3677.0,3676.8,2.16810662]
[1736140079375,0.4482,3677.0,3676.8,2.41296662]
[1736140079779,0.4482,3677.0,3676.8,2.41295662]
[1736140082277,0.4482,3677.0,3676.9,0.24485]
[1736140083487,0.4482,3677.0,3676.8,6.42534568]
[1736140083687,0.4482,3677.0,3676.9,0.24485]
[1736140084584,0.4482,3677.0,3676.8,6.42534568]
[1736140084782,0.4482,3677.0,3676.8,6.67019568]
[1736140085382,0.4482,3677.0,3676.8,6.42534568]
[1736140085980,0.4482,3677.0,3676.8,4.25723906]
[1736140086185,0.24485,3676.9,3676.8,4.25723906]
[1736140088186,0.24485,3676.9,3676.6,4.50210906]
[1736140088381,0.24485,3676.9,3676.6,4.25723906]
[1736140088784,0.24486,3676.7,3676.6,4.25723906]
[1736140089090,0.24486,3676.8,3676.6,4.25723906]
[1736140089386,0.24486,3676.7,3676.6,4.25723906]
[1736140090689,3.2078,3676.9,3676.4,4.25723906]
[1736140090886,0.4482,3677.0,3676.4,4.25723906]
[1736140090887,3.45268,3676.5,3676.4,4.25723906]
[1736140091386,3.87778,3676.5,3676.4,4.25723906]
[1736140091587,3.87778,3676.5,3676.4,3.58043906]
[1736140092684,3.6329,3676.5,3675.9,6.39763359]
[1736140092888,0.2449,3676.2,3675.9,6.64254359]
[1736140093086,0.4199,3676.4,3675.9,6.39763359]
[1736140093488,0.24491,3676.0,3675.9,6.39763359]
[1736140093891,0.4199,3676.4,3675.9,6.39763359]
[1736140094077,0.66479,3676.4,3675.9,8.56574021]
[1736140094282,0.4199,3676.4,3675.9,8.56574021]
[1736140094483,0.24489,3676.3,3675.9,8.81065021]
[1736140094788,0.24491,3676.0,3675.9,6.39763359]
[1736140095582,0.24491,3676.0,3675.9,11.11848847]
[1736140096386,0.2449,3676.1,3675.9,11.11848847]
[1736140096595,0.66478,3676.4,3676.1,0.2449]
[1736140096992,0.24489,3676.3,3676.0,0.68891]
[1736140097491,0.2449,3676.2,3676.0,0.444]
[1736140098188,0.2449,3676.2,3676.1,40.8]
[1736140098394,0.4199,3676.4,3676.1,40.8]
[1736140098395,0.24489,3676.3,3676.1,40.8]
[1736140099003,0.2449,3676.1,3675.9,8.56574021]
[1736140099301,0.65971,3676.0,3675.9,6.39763359]
[1736140100499,0.4148,3676.0,3675.8,0.24492]
[1736140100896,0.8549,3676.0,3675.8,0.24492]
[1736140101698,1.09981,3676.0,3675.8,0.24492]
[1736140102106,1.09981,3676.0,3675.7,9.60543359]
[1736140102303,1.09981,3676.0,3675.7,9.85036359]
[1736140102902,1.09981,3676.0,3675.8,4.71800701]
[1736140103293,0.8549,3676.0,3675.8,4.96292701]
[1736140103694,0.8549,3676.0,3675.8,4.71800701]
[1736140103907,1.09981,3676.0,3675.7,9.85036359]
[1736140104093,0.24491,3676.0,3675.7,9.85036359]
[1736140104498,0.8299,3676.3,3675.7,9.85036359]
[1736140104499,0.24492,3675.8,3675.7,6.39763359]
[1736140105109,0.8299,3676.3,3675.7,6.39763359]
[1736140105300,0.24492,3675.9,3675.7,6.39763359]
[1736140105603,0.24491,3676.0,3675.7,6.64256359]
[1736140105903,0.24492,3675.8,3675.7,6.39763359]
[1736140106502,0.24493,3675.7,3675.6,6.39763359]
[1736140107504,0.24494,3675.6,3675.5,6.83993359]
[1736140108410,0.24494,3675.6,3675.5,11.55649472]
[1736140109611,0.69144,3675.7,3675.5,0.4423]
[1736140109908,0.69143,3675.7,3675.5,0.4423]
[1736140110107,0.24494,3675.6,3675.5,0.4423]
[1736140111610,0.24494,3675.6,3675.5,5.15426229]
[1736140112109,0.24494,3675.6,3675.5,4.71196229]
[1736140113000,0.4465,3675.7,3675.1,10.31221021]
[1736140113214,0.4465,3675.7,3675.2,0.24496]
[1736140113215,0.24495,3675.5,3675.2,0.24496]
[1736140113807,0.4465,3675.7,3675.1,9.00324021]
[1736140113808,0.24495,3675.4,3675.1,9.24821021]
[1736140114011,0.24496,3675.3,3675.1,9.00324021]
[1736140114212,0.4465,3675.7,3675.1,6.83513359]
[1736140114508,0.24496,3675.2,3675.1,0.4375]
[1736140116010,2.78041662,3675.9,3675.1,0.4375]
[1736140116011,5.3381054,3676.0,3675.8,0.24492]
[1736140116312,5.5830154,3676.0,3675.9,0.4218]
[1736140116615,5.5830154,3676.0,3675.9,41.2218]
[1736140117214,5.5830154,3676.0,3675.9,0.66672]
[1736140117215,3.2078,3676.0,3675.9,0.66672]
[1736140117407,0.4391,3676.3,3676.1,0.2449]
[1736140118112,0.4391,3676.3,3676.0,2.16810662]
[1736140118507,0.68399,3676.3,3676.1,0.2449]
[1736140118711,0.68399,3676.3,3676.0,2.41301662]
[1736140118910,0.68399,3676.3,3676.1,0.2449]
[1736140120403,3.2078,3676.5,3676.0,2.16810662]
[1736140120605,0.24489,3676.4,3676.1,0.2449]
[1736140120807,3.2078,3676.5,3676.1,0.2449]
[1736140120808,0.24489,3676.3,3676.1,0.2449]
[1736140121717,0.24489,3676.3,3676.0,2.41301662]
[1736140121917,0.24489,3676.3,3676.0,2.16810662]
[1736140122618,3.2078,3676.5,3676.0,2.16810662]
[1736140122821,3.45268,3676.5,3676.3,0.24489]
[1736140123212,3.45268,3676.5,3676.0,2.16810662]
[1736140123412,3.2078,3676.5,3676.3,0.24489]
[1736140123615,3.2078,3676.5,3676.0,2.16810662]
[1736140123818,3.2078,3676.5,3676.4,0.24488]
[1736140125612,3.2078,3676.5,3676.0,8.56574021]
[1736140125813,3.2078,3676.5,3676.4,0.24488]
[1736140126214,1.11687,3676.7,3676.4,0.24488]
[1736140127022,0.24487,3676.6,3676.5,0.4155]
[1736140127322,0.872,3676.7,3676.5,0.66038]
[1736140127517,0.872,3676.7,3676.5,0.4155]
[1736140127722,1.11687,3676.7,3676.5,0.4155]
[1736140127929,0.24487,3676.6,3676.5,0.4155]
[1736140131723,1.11687,3676.7,3676.5,0.4155]
[1736140133424,0.24487,3676.6,3676.5,0.4155]
[1736140134615,0.872,3676.7,3676.4,6.39763359]
[1736140134821,0.24488,3676.5,3676.4,6.39763359]
[1736140136129,0.24488,3676.4,3676.3,6.39763359]
[1736140137026,0.24488,3676.4,3676.3,11.10699784]
[1736140138730,0.872,3676.7,3676.0,9.87865021]
[1736140138731,0.24489,3676.3,3676.0,9.87865021]
[1736140138932,0.4498,3676.3,3676.0,9.63374021]
[1736140139124,0.442,3676.2,3676.0,7.71054359]
[1736140139617,0.442,3676.2,3676.0,7.46563359]
[1736140139829,0.442,3676.2,3676.1,0.2449]
[1736140140039,0.442,3676.2,3676.1,4.95529069]
[1736140140331,0.442,3676.2,3676.1,5.6875987]
[1736140140928,0.442,3676.2,3676.1,5.9324987]
[1736140141324,0.6869,3676.2,3676.1,5.6875987]
[1736140141533,0.442,3676.2,3676.1,5.6875987]
[1736140142220,0.6869,3676.2,3676.1,5.6875987]
[1736140143827,0.6869,3676.2,3676.1,4.71039069]
[1736140144132,0.6869,3676.2,3676.1,4.03349069]
[1736140145128,0.6869,3676.2,3675.9,0.97720801]
[1736140145129,2.5723054,3676.2,3675.9,0.97720801]
[1736140145330,0.24491,3676.0,3675.9,0.97720801]
[1736140146533,0.24492,3675.8,3675.7,0.97720801]
[1736140147034,0.24494,3675.6,3675.5,6.39763359]
[1736140147225,0.66563,3675.7,3675.5,6.39763359]
[1736140147623,0.66563,3675.7,3675.4,6.64258359]
[1736140147834,0.66563,3675.7,3675.5,0.4098]
[1736140148436,0.4207,3675.7,3675.5,0.4098]
[1736140148638,0.4207,3675.7,3675.6,0.67614]
[1736140149139,0.66563,3675.7,3675.6,0.4312]
[1736140150633,0.66563,3675.7,3675.5,0.4098]
[1736140151140,0.24494,3675.6,3675.4,6.39763359]
[1736140151337,0.4473,3675.5,3675.4,6.39763359]
[1736140151539,0.4473,3675.5,3675.3,3.90255349]
[1736140151540,0.4473,3675.5,3675.3,10.30018708]
[1736140152037,0.69225,3675.5,3675.3,10.05523708]
[1736140152437,0.69225,3675.5,3675.3,10.30019708]
[1736140152735,0.4473,3675.5,3675.3,10.30019708]
[1736140154441,0.4473,3675.5,3675.4,0.24495]
[1736140156043,0.4473,3675.5,3675.3,10.05523708]
[1736140156236,0.4473,3675.5,3675.4,0.24495]
[1736140156734,0.4473,3675.5,3675.4,6.64258359]
[1736140157136,0.69224,3675.5,3675.4,6.39763359]
[1736140157337,0.4473,3675.5,3675.4,6.39763359]
[1736140157837,0.4473,3675.5,3675.3,3.65760349]
[1736140157838,0.69224,3675.5,3675.3,10.05523708]
[1736140158036,0.24495,3675.4,3675.3,6.39763359]
[1736140158242,0.68295,3675.4,3675.3,6.39763359]
[1736140158441,0.68295,3675.4,3675.3,5.72083359]
[1736140158741,0.68295,3675.4,3675.3,3.6468336]
[1736140158942,0.68295,3675.4,3674.8,3.6468336]
[1736140158943,0.24498,3674.9,3674.8,3.6468336]
[1736140159638,0.4263,3675.0,3674.8,3.6468336]
[1736140160033,0.4263,3675.0,3674.8,3.8918136]
[1736140160439,0.67128,3675.0,3674.8,3.8918136]
[1736140160639,0.4263,3675.0,3674.8,0.24498]
[1736140161240,0.4263,3675.0,3674.9,0.4307]
[1736140161444,0.67128,3675.0,3674.7,0.24499]
[1736140161844,0.67128,3675.0,3674.8,0.24499]
[1736140162048,0.4263,3675.0,3674.6,0.4307]
[1736140162346,0.245,3674.7,3674.4,0.66971]
[1736140162941,0.4182,3674.8,3674.4,0.4247]
[1736140163434,0.24501,3674.6,3674.4,0.4247]
[1736140163642,0.24501,3674.5,3674.4,0.4247]
[1736140163943,0.66701,3674.5,3674.3,0.4307]
[1736140164437,0.24502,3674.4,3674.2,3.2078]
[1736140167345,0.422,3674.5,3674.2,3.2078]
[1736140167550,0.24502,3674.4,3674.2,3.2078]
[1736140168147,0.422,3674.5,3674.2,3.2078]
[1736140168449,0.24503,3674.2,3674.1,0.4504]
[1736140168647,0.24504,3674.0,3673.8,3.6307]
[1736140168847,0.422,3674.5,3673.8,3.6307]
[1736140169050,0.422,3674.5,3673.8,3.87575]
[1736140169051,0.24504,3674.1,3673.8,3.87575]
[1736140170041,0.24505,3674.0,3673.8,3.6307]
[1736140170253,0.24505,3674.0,3673.8,3.87575]
[1736140170548,0.422,3674.5,3673.8,3.87575]
[1736140170755,0.24504,3674.1,3673.8,3.87575]
[1736140171649,0.422,3674.5,3674.1,0.24504]
[1736140171848,0.422,3674.5,3674.0,2.16620349]
[1736140171849,0.24502,3674.5,3674.2,0.66833]
[1736140172558,3.2078,3674.6,3674.3,2.41122349]
[1736140172748,3.45278,3675.0,3674.4,0.4313]
[1736140172952,2.3752654,3675.3,3674.7,2.16620349]
[1736140173260,3.2078,3675.4,3674.8,41.6696]
[1736140173556,0.24497,3675.2,3674.9,0.24498]
[1736140175249,3.2078,3675.4,3674.8,0.8696]
[1736140175454,3.2078,3675.4,3674.8,1.11459]
[1736140175651,0.24498,3675.0,3674.8,1.11459]
[1736140176254,0.24498,3674.9,3674.8,0.8696]
[1736140177154,0.245,3674.7,3674.6,2.16620349]
[1736140177362,3.2078,3675.4,3674.4,0.8377]
[1736140177363,0.24501,3674.5,3674.4,0.8377]
[1736140177569,0.24501,3674.5,3674.4,0.4064]
[1736140177757,0.8513,3674.7,3674.2,0.4066]
[1736140178058,0.8513,3674.7,3673.9,8.54371204]
[1736140178059,0.24501,3674.5,3673.9,8.78876204]
[1736140178254,0.24503,3674.2,3673.9,8.78876204]
[1736140178454,0.24503,3674.2,3673.9,0.24505]
[1736140179060,3.2078,3674.6,3674.1,0.24503]
[1736140179061,0.24502,3674.4,3674.1,0.24503]
[1736140179360,0.8513,3674.7,3673.8,6.18700349]
[1736140179659,0.8513,3674.7,3674.1,2.41123349]
[1736140179958,0.24502,3674.4,3674.2,0.24503]
[1736140180858,0.24502,3674.4,3674.1,2.16620349]
[1736140181263,0.24502,3674.4,3674.2,0.24503]
[1736140182264,0.24501,3674.5,3674.2,0.24502]
[1736140182563,0.24501,3674.5,3674.3,0.4322]
[1736140183063,0.24502,3674.4,3674.3,0.4322]
[1736140183865,0.24502,3674.4,3674.1,0.24503]
[1736140184162,0.8513,3674.7,3674.0,0.24504]
[1736140184163,0.67983,3674.3,3674.0,0.24504]
[1736140184467,0.67983,3674.3,3674.1,0.24503]
[1736140185658,0.67983,3674.3,3673.9,3.64]
[1736140185860,0.67983,3674.3,3674.0,0.24504]
[1736140187969,0.24503,3674.2,3674.0,0.24504]
[1736140188565,0.67982,3674.3,3674.0,0.24504]
[1736140191776,0.4348,3674.3,3674.1,0.24503]
[1736140192378,0.67982,3674.3,3674.0,0.24504]
[1736140192881,0.67982,3674.3,3674.1,0.24503]
[1736140195279,0.4348,3674.3,3674.1,0.24503]
[1736140198281,0.67982,3674.3,3674.1,0.24503]
[1736140200480,0.4348,3674.3,3674.1,0.24503]
[1736140200683,0.24502,3674.4,3674.1,2.41123349]
[1736140200993,0.24502,3674.4,3674.3,0.97820416]
[1736140203888,0.24504,3674.0,3673.9,8.18924654]
[1736140204188,4.43104416,3674.0,3673.9,7.52709238]
[1736140205195,0.2451,3673.2,3673.0,0.8642]
[1736140205381,0.4501,3673.1,3673.0,0.8642]
[1736140205588,0.6952,3673.1,3673.0,0.8642]
[1736140206188,0.4501,3673.1,3673.0,0.8642]
[1736140206489,0.4501,3673.1,3673.0,5.47076433]
[1736140206894,0.6952,3673.1,3673.0,5.47076433]
[1736140207296,0.4501,3673.1,3673.0,5.71587433]
[1736140207494,2.13853414,3673.7,3673.0,5.47076433]
[1736140207699,2.13853414,3673.7,3673.6,2.41414772]
[1736140208098,2.13853414,3673.7,3673.6,44.08244772]
[1736140208297,2.13853414,3673.7,3673.6,45.14744772]
[1736140209194,0.68482,3674.3,3673.6,49.50894205]
[1736140209391,0.68482,3674.3,3673.8,0.24505]
[1736140209598,0.4398,3674.3,3673.7,0.4392]
[1736140209799,0.4398,3674.3,3673.8,0.24506]
[1736140209991,0.68482,3674.3,3673.8,0.24506]
[1736140210192,2.97223414,3674.4,3674.1,2.41411772]
[1736140210397,2.97223414,3674.4,3674.1,2.16907772]
[1736140210398,0.8337,3674.4,3674.1,2.16907772]
[1736140210791,2.13853414,3674.6,3674.1,2.16907772]
[1736140210993,2.13853414,3674.6,3674.5,3.45281]
[1736140211197,2.13853414,3674.6,3674.5,3.2078]
[1736140211693,2.38350414,3675.1,3674.5,3.45281]
[1736140211901,2.38350414,3675.1,3674.7,2.16907772]
[1736140212293,0.24498,3675.0,3674.7,2.16907772]
[1736140212498,2.38350414,3675.1,3674.7,2.16907772]
[1736140212999,0.24497,3675.1,3674.7,6.68846391]
[1736140213199,0.4377,3675.2,3674.7,6.44347391]
[1736140213399,0.4377,3675.2,3674.8,0.4388]
[1736140213592,0.4377,3675.2,3675.0,0.24497]
[1736140213996,0.4377,3675.2,3674.8,0.4388]
[1736140214206,0.68266,3675.2,3674.8,0.68378]
[1736140214393,0.4377,3675.2,3674.9,0.24498]
[1736140215500,0.4377,3675.2,3674.8,0.4388]
[1736140215698,0.68266,3675.2,3674.8,0.68379]
[1736140216401,0.24498,3675.0,3674.8,0.4388]
[1736140217101,0.4377,3675.2,3674.8,0.4388]
[1736140217302,0.4377,3675.2,3674.7,4.27439619]
[1736140217303,0.24498,3674.9,3674.7,4.27439619]
[1736140218392,0.4377,3675.2,3674.7,4.27439619]
[1736140218899,0.4377,3675.2,3674.7,0.24499]
[1736140219202,0.68266,3675.2,3674.8,0.24499]
[1736140219994,0.4377,3675.2,3674.7,2.16907772]
[1736140220203,0.24497,3675.1,3674.7,6.68846391]
[1736140220891,0.24497,3675.1,3674.8,0.24499]
[1736140221091,0.4377,3675.2,3674.8,0.68269]
[1736140221292,0.68266,3675.2,3674.8,0.68269]
[1736140221601,0.4377,3675.2,3674.8,0.68269]
[1736140221803,0.24497,3675.1,3674.8,0.68269]
[1736140222299,3.02363414,3675.4,3675.0,2.16907772]
[1736140222506,3.02363414,3675.4,3675.1,0.4139]
[1736140222804,0.24496,3675.2,3674.9,0.4109]
[1736140223100,3.02363414,3675.4,3674.9,0.4109]
[1736140223301,3.02363414,3675.4,3674.7,6.44347391]
[1736140223302,3.02363414,3675.4,3674.7,4.27439619]
[1736140223604,0.24498,3674.9,3674.7,4.27439619]
[1736140223811,0.4125,3674.8,3674.7,4.27439619]
[1736140224297,0.4125,3674.8,3674.6,7.88376285]
[1736140225405,0.4125,3674.8,3674.7,0.245]
[1736140226102,0.4125,3674.8,3674.7,4.51710606]
[1736140227695,3.45276,3675.3,3674.7,4.27210606]
[1736140227895,0.4248,3675.2,3674.8,0.4273]
[1736140228101,0.4248,3675.2,3675.0,0.24497]
[1736140229110,0.4248,3675.2,3674.8,0.4273]
[1736140229401,0.66977,3675.2,3674.9,0.24498]
[1736140230304,0.4248,3675.2,3675.0,0.24497]
[1736140231112,0.4248,3675.2,3675.1,0.24497]
[1736140231311,0.4248,3675.2,3675.0,0.24497]
[1736140232503,3.45276,3675.3,3675.1,0.24497]
[1736140232805,3.45276,3675.3,3675.2,0.4353]
[1736140233405,3.2078,3675.3,3675.1,40.8]
[1736140233708,0.24496,3675.2,3675.1,40.8]
[1736140234703,0.4348,3675.4,3674.8,5.13276545]
[1736140234901,0.4348,3675.4,3675.1,0.24497]
[1736140235101,0.4348,3675.4,3675.2,0.24496]
[1736140235305,0.4348,3675.4,3674.9,3.2078]
[1736140235306,0.24496,3675.2,3675.0,0.24498]
[1736140236414,0.24496,3675.3,3675.1,0.24496]
[1736140237112,0.24496,3675.3,3674.9,7.47796545]
[1736140237305,0.4348,3675.4,3675.1,0.24497]
[1736140237306,0.67975,3675.4,3675.1,0.24497]
[1736140237502,0.67975,3675.4,3675.2,0.24496]
[1736140237702,0.67975,3675.4,3675.1,0.24497]
[1736140238512,0.24496,3675.3,3675.1,0.24497]
[1736140240913,0.24496,3675.3,3675.0,0.4478]
[1736140240914,0.24497,3675.1,3675.0,0.4478]
[1736140241118,0.24497,3675.1,3674.9,4.51514545]
[1736140241322,0.439,3675.0,3674.9,4.51514545]
[1736140242517,0.439,3675.0,3674.7,45.07016545]
[1736140242711,0.4435,3674.9,3674.7,45.07016545]
[1736140242911,0.68849,3674.9,3674.7,45.07016545]
[1736140243107,0.24499,3674.8,3674.7,45.07016545]
[1736140243306,0.24499,3674.8,3674.7,4.27016545]
[1736140243718,0.65549,3674.8,3674.7,4.27016545]
[1736140243925,0.65549,3674.8,3674.6,45.31516545]
[1736140244715,0.65549,3674.8,3674.6,45.07016545]
[1736140244917,0.4105,3674.8,3674.6,45.31516545]
[1736140245104,0.4105,3674.8,3674.6,41.045]
[1736140246111,0.245,3674.7,3674.6,40.8]
[1736140246316,0.4105,3674.8,3674.5,7.47796545]
[1736140246519,0.245,3674.6,3674.5,7.47796545]
[1736140247816,0.245,3674.6,3674.5,3.2078]
[1736140250824,0.245,3674.6,3674.4,40.8]
[1736140251017,0.4312,3674.5,3674.4,40.8]
[1736140251421,0.4312,3674.5,3674.4,41.04502]
[1736140253323,0.4312,3674.5,3674.4,45.64577301]
[1736140254019,0.4312,3674.5,3674.4,53.93466943]
[1736140254326,0.4312,3674.5,3674.4,54.17968943]
[1736140255325,0.4312,3674.5,3674.4,52.0607515]
[1736140256721,0.4312,3674.5,3674.4,45.64577301]
[1736140257325,2.54903414,3674.8,3674.6,0.245]
[1736140257926,2.54903414,3674.8,3674.6,0.6925]
[1736140258825,2.79402414,3674.8,3674.6,0.4475]
[1736140259123,0.65549,3674.8,3674.7,4.27748291]
[1736140262228,0.65549,3674.8,3674.7,11.02215294]
[1736140263633,0.65549,3674.8,3674.7,4.60592858]
[1736140266137,0.65549,3674.8,3674.7,4.27706817]
[1736140272442,0.245,3674.7,3674.6,4.27706817]
[1736140272641,1.22308225,3674.7,3674.6,4.27706817]
[1736140273740,1.22308225,3674.7,3674.3,8.53391642]
[1736140273741,0.24501,3674.5,3674.4,4.27706817]
[1736140273935,1.22309225,3674.5,3674.4,4.27706817]
[1736140274843,3.11661639,3674.5,3674.2,4.27706817]
[1736140275037,0.24502,3674.3,3674.2,4.27706817]
[1736140275448,0.68642,3674.3,3674.2,4.27706817]
[1736140276640,1.66450225,3674.3,3674.2,4.27706817]
[1736140278844,4.61241562,3674.3,3674.0,6.41622436]
[1736140279148,4.61241562,3674.3,3673.7,4.72626817]
[1736140279149,0.24506,3673.8,3673.7,4.72626817]
[1736140279344,4.43094225,3673.8,3673.7,4.27706817]
[1736140280439,6.56901719,3673.8,3673.6,1.3052]
[1736140280644,0.24507,3673.7,3673.6,1.3052]
[1736140280846,6.32395719,3673.8,3673.6,1.3052]
[1736140281048,6.56901719,3673.8,3673.6,1.3052]
[1736140281647,4.43094225,3673.8,3673.6,1.3052]
[1736140282045,4.18588225,3673.8,3673.6,1.3052]
[1736140282247,0.24507,3673.7,3673.6,1.3052]
[1736140284652,0.24507,3673.7,3673.6,0.4424]
[1736140285154,0.24507,3673.7,3673.3,0.4281]
[1736140285155,0.24509,3673.4,3673.3,0.4281]
[1736140286957,0.66349,3673.4,3673.3,0.4281]
[1736140290059,0.24509,3673.3,3673.2,0.97808225]
[1736140290961,0.2451,3673.2,3673.1,0.835]
[1736140291263,0.24511,3673.1,3673.0,4.27706817]
[1736140291459,0.97808225,3673.1,3672.9,4.27706817]
[1736140291655,0.24511,3673.0,3672.9,4.27706817]
[1736140292862,0.24512,3672.9,3672.8,0.8749]
[1736140293056,0.68002,3672.9,3672.8,0.8749]
[1736140293760,1.65810225,3672.9,3672.8,0.8749]
[1736140294157,1.41298225,3672.9,3672.8,0.8749]
[1736140294359,0.24512,3673.0,3672.8,1.12003]
[1736140294955,0.97808225,3673.3,3672.9,0.97808225]
[1736140295159,0.24511,3673.1,3672.9,0.97808225]
[1736140295351,0.97808225,3673.3,3672.9,0.97808225]
[1736140295555,0.24511,3673.0,3672.9,0.97808225]
[1736140296662,0.24512,3672.9,3672.8,0.8749]
[1736140297253,1.22320225,3672.9,3672.8,0.8749]
[1736140297653,1.22320225,3672.9,3672.6,7.48486817]
[1736140297654,0.24513,3672.7,3672.6,4.27706817]
[1736140297858,1.22321225,3672.7,3672.6,4.27706817]
[1736140298059,0.24515,3672.5,3672.4,0.8639]
[1736140298363,1.22323225,3672.5,3672.4,0.8639]
[1736140298964,0.24515,3672.5,3672.4,0.8639]
[1736140299864,0.24514,3672.6,3672.4,0.8639]
[1736140300162,0.24515,3672.5,3672.4,0.8639]
[1736140300561,0.24514,3672.6,3672.4,0.8639]
[1736140300760,0.24514,3672.6,3672.4,1.10905]
[1736140300966,0.24513,3672.8,3672.4,1.10905]
[1736140301164,3.6542,3672.9,3672.4,1.10905]
[1736140301459,0.24513,3672.7,3672.4,1.10905]
[1736140301664,0.24513,3672.7,3672.5,0.24515]
[1736140301964,3.6542,3672.9,3672.4,0.8639]
[1736140301965,0.24515,3672.6,3672.4,0.8639]
[1736140302167,0.24515,3672.6,3672.4,1.10905]
[1736140302364,0.24515,3672.5,3672.4,0.8639]
[1736140302560,0.67385,3672.5,3672.4,0.8639]
[1736140304869,0.24515,3672.4,3672.3,0.4186]
[1736140305063,0.4287,3672.5,3672.1,3.2078]
[1736140305256,0.4287,3672.5,3672.2,0.24516]
[1736140305461,0.67385,3672.5,3672.2,0.24516]
[1736140307663,0.24515,3672.4,3672.1,3.45297]
[1736140308761,0.4287,3672.5,3672.1,3.2078]
[1736140308958,0.4464,3672.9,3672.1,5.37791712]
[1736140309165,3.628,3673.0,3672.1,5.37791712]
[1736140309372,3.45291,3673.0,3672.8,0.24512]
[1736140309570,3.45291,3673.0,3672.9,0.8543]
[1736140309869,3.2078,3673.0,3672.9,0.8543]
[1736140310166,0.24508,3673.6,3673.3,0.24509]
[1736140310463,2.38313494,3673.8,3673.5,0.24508]
[1736140310869,2.38313494,3673.8,3673.6,0.862]
[1736140311075,0.24507,3673.7,3673.6,0.862]
[1736140311263,2.38313494,3673.8,3673.6,0.862]
[1736140311565,0.24506,3673.8,3673.6,0.862]
[1736140311766,0.24507,3673.7,3673.6,0.862]
[1736140311963,0.24506,3673.8,3673.6,0.862]
[1736140313169,3.6148,3673.9,3673.6,0.862]
[1736140313369,3.6148,3673.9,3673.8,0.24506]
[1736140313370,3.2078,3673.9,3673.8,0.24506]
[1736140313573,3.2078,3673.9,3673.7,0.24506]
[1736140314476,0.24505,3673.9,3673.6,1.10707]
[1736140315774,0.24505,3674.0,3673.7,0.24506]
[1736140316177,0.4445,3674.1,3673.8,0.24506]
[1736140316378,0.4445,3674.1,3673.6,0.862]
[1736140316676,0.24505,3673.9,3673.6,1.10707]
[1736140317379,0.24505,3673.9,3673.7,0.24506]
[1736140317569,0.24505,3674.0,3673.6,0.862]
[1736140317869,0.24505,3674.0,3673.7,0.24506]
[1736140318467,0.4445,3674.1,3673.6,0.862]
[1736140318876,0.24505,3674.0,3673.6,0.862]
[1736140319076,0.24505,3674.0,3673.8,0.24506]
[1736140319579,0.4445,3674.1,3673.6,0.862]
[1736140319777,0.24503,3674.2,3673.9,0.24505]
[1736140320574,0.24503,3674.2,3673.7,3.2078]
[1736140320769,0.24503,3674.2,3673.9,0.24505]
[1736140321680,0.24504,3674.1,3673.8,0.24506]
[1736140323483,0.24505,3674.0,3673.7,3.45286]
[1736140324581,0.24504,3674.1,3673.8,0.24506]
[1736140325784,0.24505,3674.0,3673.7,3.45286]
[1736140330990,0.24505,3674.0,3673.7,4.43134413]
[1736140331384,0.97848413,3674.1,3673.7,4.18628413]
[1736140331585,0.24503,3674.2,3673.9,1.22353413]
[1736140332084,0.24504,3674.1,3673.9,41.77848413]
[1736140332390,0.97848413,3674.1,3673.8,0.24506]
[1736140332688,0.97848413,3674.1,3673.7,4.18628413]
[1736140332689,0.24506,3673.8,3673.7,4.18628413]
[1736140333086,0.24506,3673.8,3673.7,3.2078]
[1736140333483,3.651,3673.9,3673.5,4.27706817]
[1736140333786,1.22355413,3673.6,3673.5,4.27706817]
[1736140334386,0.24509,3673.4,3673.3,7.48486817]
[1736140334584,1.22357413,3673.4,3673.3,4.27706817]
[1736140335095,0.24509,3673.4,3673.3,4.27706817]
[1736140335990,2.60106338,3673.7,3672.9,0.24512]
[1736140335991,0.2451,3673.2,3672.9,0.24512]
[1736140336790,0.2451,3673.2,3673.0,0.24511]
[1736140336992,0.2451,3673.2,3672.9,0.24512]
[1736140337181,0.4076,3673.1,3672.9,0.24512]
[1736140337999,0.65271,3673.1,3672.8,4.0668]
[1736140338294,0.65271,3673.1,3672.8,4.31192]
[1736140339191,0.4076,3673.1,3672.8,4.31192]
[1736140339386,0.4076,3673.1,3672.8,4.0668]
[1736140339588,0.4076,3673.1,3672.9,0.24511]
[1736140339789,0.4076,3673.1,3672.8,4.0668]
[1736140339997,0.4076,3673.1,3673.0,0.24511]
[1736140340586,6.40172494,3673.9,3673.0,0.24511]
[1736140340587,5.78907494,3673.9,3673.5,0.24508]
[1736140340793,0.24506,3673.8,3673.5,0.24508]
[1736140341691,0.24506,3673.8,3673.4,0.24508]
[1736140341890,0.24506,3673.8,3673.3,3.2078]
[1736140342086,1.10975,3673.9,3673.6,0.24507]
[1736140342288,0.4215,3673.9,3673.8,0.24506]
[1736140342491,2.13807494,3674.0,3673.9,0.24505]
[1736140342692,2.99127494,3674.3,3673.9,0.24505]
[1736140342888,0.24504,3674.1,3673.8,0.24506]
[1736140345492,0.8532,3674.3,3673.7,3.2078]
[1736140345693,0.24505,3674.0,3673.7,3.45286]
[1736140346895,0.24504,3674.1,3673.8,0.24506]